fUST/lending_fUST_20240816
["ID","MTS","AMOUNT","RATE_DAILY","PERIOD"]
[335029642,1723775450638,-284.325541,0.00043815,120]
[335029643,1723775450652,-284.325541,0.00043815,120]
[335029644,1723775450666,-151.0,0.00043825,120]
[335029645,1723775450677,-151.0,0.00043825,120]
[335029646,1723775450689,-151.0,0.00043825,120]
[335029647,1723775450699,-151.0,0.00043825,120]
[335029648,1723775450710,-226.5,0.00043825,120]
[335029649,1723775450722,-151.0,0.00043825,120]
[335029650,1723775450736,-151.0,0.00043825,120]
[335029651,1723775450748,-1037.240293,0.00043825,120]
[335029652,1723775450761,-1037.240293,0.00043825,120]
[335029653,1723775450772,-151.0,0.00043825,120]
[335029654,1723775450783,-203.508808,0.00043825,120]
[335029655,1723775450796,-151.0,0.00043825,120]
[335029656,1723775450807,-151.0,0.00043825,120]
[335029657,1723775450819,-151.0,0.00043825,120]
[335029658,1723775450830,-151.0,0.00043825,120]
[335029659,1723775450841,-1457.545161,0.00043825,120]
[335029660,1723775450853,-1457.545161,0.00043825,120]
[335029661,1723775450864,-1457.545161,0.00043825,120]
[335029662,1723775450875,-1457.545161,0.00043825,120]
[335029663,1723775450886,-151.0,0.00043825,2]
[335029664,1723775450899,-151.0,0.00043825,2]
[335029665,1723775450912,-450.155988,0.00043825,120]
[335029666,1723775450930,-450.155988,0.00043825,120]
[335029667,1723775450942,-450.155988,0.00043825,120]
[335029668,1723775450954,-450.155988,0.00043825,120]
[335029669,1723775450967,-185.824287,0.00043825,120]
[335029670,1723775450979,-359.224884,0.00043825,120]
[335029671,1723775450992,-359.224884,0.00043825,120]
[335029672,1723775451003,-359.224884,0.00043825,120]
[335029673,1723775451016,-359.224884,0.00043825,120]
[335029674,1723775451027,-151.0,0.00043825,120]
[335029675,1723775451039,-151.0,0.00043825,120]
[335029676,1723775451052,-151.0,0.00043825,120]
[335029677,1723775451064,-151.0,0.00043825,120]
[335029678,1723775451075,-219.902137,0.00043825,120]
[335029679,1723775451087,-219.902137,0.00043825,120]
[335029680,1723775451099,-219.902137,0.00043825,120]
[335029681,1723775451114,-219.902137,0.00043825,120]
[335029682,1723775451126,-160.961913,0.00043825,120]
[335029683,1723775451137,-160.961913,0.00043825,120]
[335029684,1723775451150,-160.961913,0.00043825,120]
[335029685,1723775451162,-160.961913,0.00043825,120]
[335029686,1723775451179,-284.325541,0.00043825,120]
[335029687,1723775451190,-284.325541,0.00043825,120]
[335029688,1723775451200,-284.325541,0.00043825,120]
[335029689,1723775451211,-284.325541,0.00043825,120]
[335029690,1723775451222,-1116.054877,0.00043825,120]
[335029691,1723775451233,-1116.054877,0.00043825,120]
[335029692,1723775451244,-1116.054877,0.00043825,120]
[335029693,1723775451255,-1116.054877,0.00043825,120]
[335029694,1723775451266,-67037.92003188,0.00043825,5]
[335029703,1723775715793,154.98780416,0.00013971,2]
[335029705,1723775727143,171.1016104,0.00013971,2]
[335029707,1723775780473,1670.74719108,0.00013971,2]
[335029721,1723776336123,-161.9773292,0.00014247,2]
[335029722,1723776336145,-102.36109521,0.00014247,2]
[335029726,1723776425128,-59.73563879,0.00014247,2]
[335029727,1723776425151,-952.97302419,0.00024728,2]
[335029728,1723776425172,-249.3688393,0.00024803,2]
[335029729,1723776425195,-229.11056476,0.0003,30]
[335029730,1723776425216,-162.096734,0.00031781,2]
[335029731,1723776425238,-162.646576,0.00034977,2]
[335029732,1723776425260,-250.0000025,0.0003641,2]
[335029733,1723776425282,-158.27109,0.00036777,120]
[335029734,1723776425308,-154.79103211,0.0004,4]
[335029735,1723776425329,-3396.43310837,0.00041751,2]
[335029736,1723776425350,-500.0,0.0004274,2]
[335029737,1723776425372,-308.0963801,0.00043151,2]
[335029738,1723776425393,-294.8692654,0.00043562,2]
[335029739,1723776425414,-307.1350843,0.00043562,2]
[335029740,1723776425436,-294.8692653,0.00043562,2]
[335029741,1723776425457,-294.8692653,0.00043562,2]
[335029742,1723776425479,-294.8692653,0.00043562,2]
[335029743,1723776425500,-294.8692653,0.00043562,2]
[335029744,1723776425522,-297.3736058,0.00043562,2]
[335029745,1723776425543,-135.78185153,0.00043724,28]
[335029751,1723776564112,-1651.22887982,0.00014519,3]
[335029752,1723776564134,-342.9697323,0.00014519,2]
[335029753,1723776564154,-200.59987483,0.00014519,2]
[335029754,1723776564179,-1491.3545127,0.00014519,2]
[335029755,1723776568077,-163.43321624,0.00014519,2]
[335029756,1723776572142,-1438.70817646,0.00014519,2]
[335029855,1723776638576,-952.97302419,0.00025211,2]
[335029857,1723776638586,-212.399,0.00029873,2]
[335029858,1723776638596,-150.194,0.00029873,2]
[335029860,1723776638606,-213.495,0.00029873,2]
[335029862,1723776638615,-236.12253895,0.0004,4]
[335029864,1723776638624,-500.0,0.0004274,2]
[335029866,1723776638633,-332.0,0.00043723,30]
[335029868,1723776638643,-500.0,0.00043723,31]
[335029870,1723776638652,-636.717643,0.00043723,31]
[335029872,1723776638662,-2418.74926993,0.00043724,4]
[335029874,1723776638671,-216.54138344,0.00043724,4]
[335029876,1723776638681,-19213.88321345,0.00043724,60]
[335029878,1723776638693,-309.25989074,0.00043724,60]
[335029954,1723776643681,-150.0,0.00032873,2]
[335029956,1723776643691,-19850.0,0.00043724,60]
[335029977,1723776651875,154.85605764,0.00017598,2]
[335029978,1723776656560,81.45381606,0.00017598,2]
[335029979,1723776656582,115.60764688,0.00017598,2]
[335029980,1723776661697,82.39255392,0.00017598,2]
[335029982,1723776815808,154.86821362,0.00013971,2]
[335029983,1723776842345,2889.38536773,0.00013971,2]
[335029985,1723776878542,397.72664921,0.00013971,2]
[335029986,1723776906155,809.95963071,0.00013971,2]
[335029988,1723777147175,809.95963071,0.00013971,2]
[335029991,1723777331190,809.95963071,0.00013971,2]
[335029999,1723777534421,809.95963071,0.00013971,2]
[335030001,1723777546137,-160.60265401,0.00014147,2]
[335030004,1723777619124,-88.77540049,0.00014147,2]
[335030005,1723777619146,-160.60397235,0.00014247,2]
[335030006,1723777633109,-9.57423165,0.00014247,2]
[335030007,1723777633136,-162.096739,0.00014247,2]
[335030008,1723777633158,-809.95963071,0.00014519,2]
[335030009,1723777633181,-199.77645955,0.00016968,2]
[335030011,1723777755125,-809.95963071,0.00014519,2]
[335030012,1723777755152,-952.97302419,0.00016934,2]
[335030013,1723777755175,-72.4551293,0.00017598,2]
[335030014,1723777755199,-250.0,0.00018627,2]
[335030015,1723777758701,175.90203262,0.00014245,2]
[335030016,1723777760127,-634.05759809,0.00014245,2]
[335030017,1723777760156,-15014.9183179,0.00018976,2]
[335030018,1723777760177,-36.1230919,0.00019178,2]
[335030102,1723777839230,245.0,0.00014519,2]
[335030103,1723777839259,155.77169776,0.00014519,2]
[335030111,1723777843600,-409.18793295,0.00014519,2]
[335030112,1723777843610,-126.5234841,0.00019178,2]
[335030113,1723777843620,-162.646576,0.00019689,2]
[335030114,1723777843630,-1260.16836963,0.0002,2]
[335030115,1723777843639,-292.74652558,0.0002,2]
[335030116,1723777843650,-2626.72256872,0.0002024,2]
[335030117,1723777843660,-1542.43447568,0.0002099,2]
[335030118,1723777843669,-3000.0,0.00021,2]
[335030119,1723777843679,-3000.0,0.0002101,2]
[335030120,1723777843689,-3000.0,0.0002102,2]
[335030121,1723777843698,-3000.0,0.0002103,2]
[335030122,1723777843708,-1429.57006734,0.0002104,2]
[335030123,1723777843829,-1570.42993266,0.0002104,2]
[335030124,1723777843839,-3000.0,0.0002105,2]
[335030125,1723777843849,-3000.0,0.0002106,2]
[335030127,1723777843859,-3000.0,0.0002107,2]
[335030129,1723777843873,-449.20336273,0.0002108,2]
[335030137,1723777973658,337.41098748,0.00027,120]
[335030138,1723778231250,324.73759861,0.00013971,2]
[335030147,1723778755099,-166.693912,0.00014247,2]
[335030148,1723778755121,-300.74262058,0.0002,2]
[335030149,1723778755142,-803.79313955,0.00020609,2]
[335030150,1723778755163,-349.36708477,0.00021,2]
[335030151,1723778755185,-296.33524518,0.00021,2]
[335030154,1723778831102,-753.52570763,0.00021,2]
[335030156,1723778947087,-155.23051334,0.00014519,2]
[335030157,1723778948147,-130.37271525,0.00014519,2]
[335030158,1723778948173,-253.19585738,0.00018,2]
[335030212,1723779047425,-83.72507863,0.00021,2]
[335030216,1723779314835,281.1344621,0.00013971,2]
[335030219,1723779403861,350.06047564,0.00013971,2]
[335030220,1723779620279,233.37365042,0.00013971,2]
[335030226,1723779850173,194.47804202,0.00013971,2]
[335030229,1723779956131,-165.656983,0.00014247,2]
[335030230,1723779956154,-154.79103211,0.00014519,2]
[335030231,1723779956176,-155.05125079,0.00014519,2]
[335030232,1723779956198,-107.86130934,0.00020927,2]
[335030233,1723780034103,-154.79103211,0.00014245,2]
[335030234,1723780034126,-778.73382258,0.00020927,2]
[335030239,1723780151111,-163.43321624,0.00014245,2]
[335030240,1723780151134,-158.215256,0.00014247,2]
[335030241,1723780151156,-154.79103211,0.00014519,2]
[335030242,1723780154225,-481.43454705,0.00020927,2]
[335030243,1723780154249,-54.78526666,0.00020927,2]
[335030244,1723780154273,-3000.0,0.00021,2]
[335030245,1723780154298,-3000.0,0.0002101,2]
[335030246,1723780154324,-2261.95304374,0.0002102,2]
[335030247,1723780163634,190.04403647,0.00014519,2]
[335030248,1723780165090,-150.5733426,0.00014519,2]
[335030266,1723780233203,154.79103211,0.00014519,2]
[335030685,1723780242861,-946.12861693,0.00021,2]
[335031129,1723780336182,91.4095997,0.00014519,2]
[335031130,1723780461196,154.79103211,0.00013971,2]
[335031131,1723780509231,245.98,0.00013971,3]
[335031132,1723780530736,154.88948481,0.00013971,2]
[335031133,1723780566031,150.0,0.0001,2]
[335031134,1723780614579,150.0,0.00012,2]
[335031135,1723780640750,150.0,0.00014,2]
[335031136,1723780676204,301.50349187,0.00013971,2]
[335031137,1723780767947,500.0,0.00014,2]
[335031138,1723780791069,1500.0,0.00014,2]
[335031139,1723780853868,150.0,0.0002,14]
[335031140,1723781061250,500.0,0.0002,14]
[335031142,1723781133270,-162.81941016,0.000141,2]
[335031143,1723781133294,-158.646532,0.00014247,2]
[335031144,1723781133316,-187.5,0.00019977,2]
[335031145,1723781133336,-62.38439859,0.0002,2]
[335031146,1723781205096,-92.48700387,0.0002,2]
[335031147,1723781205117,-156.89369195,0.0002,2]
[335031149,1723781305872,150.0,0.00014,2]
[335031150,1723781342327,800.0,0.00014,2]
[335031151,1723781350121,-150.0,0.000141,2]
[335031152,1723781350144,-160.6039725,0.00014247,2]
[335031153,1723781350168,-154.84768322,0.00014519,2]
[335031154,1723781356128,-396.2715843,0.0002,2]
[335031155,1723781368523,200.0,0.000141,2]
[335031156,1723781381964,31.14865172,0.000142,2]
[335031157,1723781381986,118.85134828,0.000142,2]
[335031158,1723781383850,126.14865172,0.00014519,2]
[335031159,1723781383871,208.14110632,0.00014519,2]
[335031372,1723781443267,-150.0,0.000144,2]
[335031373,1723781443276,-707.00309338,0.0002,2]
[335031374,1723781443287,-150.0,0.0002,2]
[335031375,1723781443298,-187.5,0.00020324,2]
[335031376,1723781443307,-187.5,0.00020671,2]
[335031377,1723781443316,-57.22277907,0.00021,2]
[335031378,1723781443326,-3000.0,0.00021,2]
[335031379,1723781443335,-300.0,0.00021009,2]
[335031380,1723781443345,-3000.0,0.0002101,2]
[335031381,1723781443354,-187.5,0.00021018,2]
[335031382,1723781443364,-3000.0,0.0002102,2]
[335031383,1723781443373,-4402.04253,0.0002103,2]
[335031384,1723781443383,-334.816463,0.0002103,2]
[335031385,1723781443392,-334.816463,0.0002103,2]
[335031386,1723781443402,-1759.212429,0.0002103,2]
[335031387,1723781443411,-1759.212429,0.0002103,2]
[335031388,1723781443421,-152.754237,0.0002103,2]
[335031389,1723781443430,-151.0,0.0002103,2]
[335031390,1723781443440,-151.0,0.0002103,2]
[335031391,1723781443450,-151.0,0.0002103,2]
[335031392,1723781443459,-151.0,0.0002103,2]
[335031393,1723781443469,-151.0,0.0002103,2]
[335031394,1723781443479,-151.0,0.0002103,2]
[335031395,1723781443489,-432.637002,0.0002103,2]
[335031396,1723781443498,-432.637002,0.0002103,2]
[335031397,1723781443512,-151.0,0.0002103,2]
[335031398,1723781443522,-151.0,0.0002103,2]
[335031399,1723781443533,-247.597872,0.0002103,2]
[335031400,1723781443544,-288.019201,0.0002103,2]
[335031401,1723781443555,-151.0,0.0002103,2]
[335031402,1723781443565,-151.0,0.0002103,2]
[335031403,1723781443576,-2995.2104916,0.00021079,2]
[335031404,1723781443586,-258.356384,0.00021079,2]
[335031405,1723781443595,-258.356384,0.00021079,2]
[335031406,1723781443605,-151.0,0.00021079,2]
[335031407,1723781443615,-151.0,0.00021079,2]
[335031408,1723781443624,-432.637002,0.00021079,2]
[335031409,1723781443634,-432.637002,0.00021079,2]
[335031410,1723781443644,-174.114901,0.00021079,2]
[335031411,1723781443655,-151.0,0.00021079,2]
[335031412,1723781443666,-151.0,0.00021079,2]
[335031413,1723781443676,-151.0,0.00021079,2]
[335031414,1723781443686,-952.97302419,0.00021245,2]
[335031415,1723781443695,-96.80137361,0.00021799,2]
[335031429,1723781627471,242.38397234,0.00013971,2]
[335031430,1723781701420,197.06146294,0.00013971,2]
[335031431,1723781722412,273.37336231,9.9e-05,2]
[335031432,1723781770767,213.33119522,0.00012,2]
[335031435,1723781955649,200.0,0.0002,14]
[335031438,1723782355135,-158.646532,0.00014247,2]
[335031439,1723782355159,-166.693912,0.00014247,2]
[335031440,1723782355181,-300.0,0.00019999,2]
[335031441,1723782355203,-300.0,0.00019999,2]
[335031442,1723782355226,-1001.05091984,0.0002,7]
[335031444,1723782444104,-225.0,0.00019999,2]
[335031445,1723782444126,-1128.15544787,0.0002,7]
[335031447,1723782518232,273.37336231,9.9e-05,2]
[335031448,1723782526132,273.37336231,9.9e-05,2]
[335031449,1723782547100,-285.60322859,0.00014519,2]
[335031450,1723782547123,-204.39677141,0.00018,2]
[335031451,1723782553124,-48.79908597,0.00018,2]
[335031452,1723782563864,256.54366105,9.9e-05,2]
[335031453,1723782563890,16.82970126,9.9e-05,2]
[335031454,1723782592309,228.17029874,0.00014519,2]
[335031455,1723782592330,154.74979142,0.00014519,2]
[335031479,1723782632240,-39.82598184,0.00014519,2]
[335031480,1723782632251,-164.19924693,0.00014519,2]
[335031482,1723782632260,-2144.4184944,0.00014519,2]
[335031490,1723782632350,-1478.40857144,0.00014519,2]
[335031492,1723782632360,-300.0,0.00019999,2]
[335031494,1723782632371,-13137.21432315,0.0002,7]
[335031496,1723782632382,-475.41938185,0.0002,7]
[335031511,1723782638255,-7946.13723329,0.0002,7]
[335031512,1723782638267,-250.0,0.0002,2]
[335031513,1723782638277,-1260.16836963,0.0002,2]
[335031514,1723782638288,-300.74262058,0.0002,2]
[335031515,1723782638299,-163.01496,0.00020162,2]
[335031516,1723782638311,-163.01496,0.00020228,2]
[335031517,1723782638322,-163.01496,0.00020293,2]
[335031518,1723782638332,-162.646576,0.0002033,2]
[335031519,1723782638343,-163.01496,0.00020359,2]
[335031520,1723782638354,-163.01496,0.00020425,2]
[335031521,1723782638364,-163.01496,0.0002049,2]
[335031522,1723782638376,-163.01496,0.00020556,2]
[335031524,1723782638387,-163.01496,0.00020622,2]
[335031526,1723782638399,-163.01496,0.00020687,2]
[335031527,1723782638409,-163.01496,0.00020753,2]
[335031528,1723782638421,-163.01496,0.00020819,2]
[335031529,1723782638431,-163.01496,0.00020884,2]
[335031530,1723782638443,-163.01496,0.0002095,2]
[335031531,1723782638453,-163.01496,0.00021016,2]
[335031532,1723782638463,-163.01496,0.00021081,2]
[335031533,1723782638474,-163.01496,0.00021147,2]
[335031534,1723782638485,-163.01496,0.00021213,2]
[335031535,1723782638495,-150.24449947,0.00021229,2]
[335031536,1723782638506,-2785.71393575,0.00021301,2]
[335031537,1723782638518,-2785.71393576,0.00021633,2]
[335031538,1723782638530,-296.335245,0.000217,2]
[335031539,1723782638540,-1496.46862799,0.00021798,2]
[335031540,1723782638551,-1100.52312279,0.00021818,2]
[335031541,1723782638566,-1366.60289767,0.00021818,2]
[335031542,1723782638578,-151.0,0.00021918,7]
[335031543,1723782638588,-151.0,0.00021918,2]
[335031544,1723782638600,-151.0,0.00021918,2]
[335031545,1723782638612,-151.0,0.00021918,7]
[335031546,1723782638622,-154.01907,0.00021918,7]
[335031547,1723782638633,-151.0,0.00021918,7]
[335031548,1723782638645,-151.0,0.00021918,7]
[335031549,1723782638659,-151.0,0.00021918,7]
[335031550,1723782638669,-151.0,0.00021918,7]
[335031551,1723782638679,-151.0,0.00021918,7]
[335031552,1723782638691,-151.0,0.00021918,7]
[335031553,1723782638703,-368.87997,0.00021918,7]
[335031554,1723782638714,-368.87997,0.00021918,7]
[335031555,1723782638725,-151.0,0.00021918,7]
[335031556,1723782638737,-368.87997,0.00021918,7]
[335031557,1723782638747,-151.0,0.00021918,7]
[335031558,1723782638759,-368.87997,0.00021918,7]
[335031559,1723782638770,-368.87997,0.00021918,7]
[335031560,1723782638781,-368.87997,0.00021918,7]
[335031561,1723782638791,-185.824287,0.00021918,7]
[335031562,1723782638802,-301.334817,0.00021918,7]
[335031563,1723782638812,-301.334817,0.00021918,7]
[335031564,1723782638822,-301.334817,0.00021918,7]
[335031565,1723782638832,-301.334817,0.00021918,7]
[335031566,1723782638842,-301.334817,0.00021918,7]
[335031567,1723782638852,-301.334817,0.00021918,7]
[335031568,1723782638862,-151.0,0.00021918,7]
[335031569,1723782638873,-169.012906,0.00021918,7]
[335031570,1723782638883,-169.012906,0.00021918,7]
[335031571,1723782638893,-169.012906,0.00021918,7]
[335031572,1723782638903,-169.012906,0.00021918,7]
[335031573,1723782638913,-169.012906,0.00021918,7]
[335031575,1723782638923,-169.012906,0.00021918,7]
[335031577,1723782638933,-151.0,0.00021918,7]
[335031578,1723782638944,-151.0,0.00021918,7]
[335031580,1723782638954,-151.0,0.00021918,7]
[335031582,1723782638964,-151.0,0.00021918,7]
[335031584,1723782638974,-151.0,0.00021918,7]
[335031586,1723782638984,-151.0,0.00021918,7]
[335031588,1723782638995,-151.0,0.00021918,7]
[335031590,1723782639006,-151.0,0.00021918,7]
[335031592,1723782639016,-186.599058,0.00021918,7]
[335031594,1723782639026,-232.520745,0.00021918,7]
[335031596,1723782639035,-232.520745,0.00021918,7]
[335031597,1723782639044,-232.520745,0.00021918,7]
[335031598,1723782639054,-232.520745,0.00021918,7]
[335031600,1723782639065,-151.0,0.00021918,7]
[335031602,1723782639075,-151.0,0.00021918,7]
[335031604,1723782639085,-151.0,0.00021918,7]
[335031606,1723782639095,-151.0,0.00021918,7]
[335031608,1723782639104,-151.0,0.00021918,7]
[335031609,1723782639114,-151.0,0.00021918,7]
[335031610,1723782639123,-151.0,0.00021918,7]
[335031612,1723782639133,-151.0,0.00021918,7]
[335031614,1723782639143,-232.520745,0.00021918,7]
[335031615,1723782639153,-232.520745,0.00021918,7]
[335031617,1723782639164,-232.520745,0.00021918,7]
[335031619,1723782639174,-232.520745,0.00021918,7]
[335031621,1723782639184,-151.0,0.00021918,7]
[335031623,1723782639195,-151.0,0.00021918,7]
[335031625,1723782639206,-151.0,0.00021918,7]
[335031627,1723782639216,-151.0,0.00021918,7]
[335031629,1723782639225,-151.0,0.00021918,7]
[335031631,1723782639235,-151.0,0.00021918,7]
[335031634,1723782639245,-262.154087,0.00021918,7]
[335031636,1723782639255,-151.0,0.00021918,7]
[335031638,1723782639265,-1583.291187,0.00021918,7]
[335031640,1723782639274,-1583.291187,0.00021918,7]
[335031642,1723782639284,-1583.291187,0.00021918,7]
[335031644,1723782639294,-1583.291187,0.00021918,7]
[335031646,1723782639303,-1583.291187,0.00021918,7]
[335031648,1723782639313,-1583.291187,0.00021918,7]
[335031650,1723782639323,-1583.291187,0.00021918,7]
[335031652,1723782639333,-1583.291187,0.00021918,7]
[335031654,1723782639342,-297.928832,0.00021935,7]
[335031656,1723782639352,-297.928832,0.00021935,7]
[335031658,1723782639363,-297.928832,0.00021935,7]
[335031660,1723782639372,-297.928832,0.00021935,7]
[335031662,1723782639382,-297.928832,0.00021935,7]
[335031664,1723782639393,-297.928832,0.00021935,7]
[335031666,1723782639404,-151.0,0.00021935,7]
[335031668,1723782639414,-153.099606,0.00021935,7]
[335031670,1723782639424,-287.436119,0.00021935,2]
[335031672,1723782639434,-151.0,0.00021935,7]
[335031674,1723782639447,-151.0,0.00021935,7]
[335031676,1723782639456,-151.0,0.00021935,7]
[335031678,1723782639466,-151.0,0.00021935,7]
[335031680,1723782639476,-151.0,0.00021935,7]
[335031682,1723782639485,-151.0,0.00021935,7]
[335031684,1723782639495,-151.0,0.00021935,7]
[335031686,1723782639504,-151.0,0.00021935,7]
[335031688,1723782639515,-151.0,0.00021935,7]
[335031690,1723782639526,-151.0,0.00021935,7]
[335031693,1723782639538,-151.0,0.00021935,7]
[335031695,1723782639550,-192.349298,0.00021935,7]
[335031697,1723782639562,-368.87997,0.00021935,7]
[335031699,1723782639571,-151.0,0.00021935,7]
[335031701,1723782639581,-151.0,0.00021935,7]
[335031703,1723782639591,-368.87997,0.00021935,7]
[335031705,1723782639601,-250.485108,0.00021935,7]
[335031707,1723782639610,-368.87997,0.00021935,7]
[335031710,1723782639621,-368.87997,0.00021935,7]
[335031713,1723782639632,-368.87997,0.00021935,7]
[335031715,1723782639643,-368.87997,0.00021935,7]
[335031717,1723782639653,-368.87997,0.00021935,7]
[335031719,1723782639663,-368.87997,0.00021935,7]
[335031721,1723782639672,-368.87997,0.00021935,7]
[335031723,1723782639682,-368.87997,0.00021935,7]
[335031725,1723782639693,-368.87997,0.00021935,7]
[335031727,1723782639702,-368.87997,0.00021935,7]
[335031729,1723782639714,-368.87997,0.00021935,7]
[335031731,1723782639724,-368.879962,0.00021935,7]
[335031733,1723782639734,-301.334817,0.00021935,7]
[335031736,1723782639745,-301.334817,0.00021935,7]
[335031738,1723782639755,-301.334817,0.00021935,7]
[335031740,1723782639766,-301.334817,0.00021935,7]
[335031742,1723782639775,-301.334817,0.00021935,7]
[335031744,1723782639785,-301.334817,0.00021935,7]
[335031747,1723782639795,-301.334817,0.00021935,7]
[335031749,1723782639806,-301.334817,0.00021935,7]
[335031751,1723782639816,-301.334817,0.00021935,7]
[335031753,1723782639826,-301.334817,0.00021935,7]
[335031755,1723782639836,-301.334817,0.00021935,7]
[335031758,1723782639848,-301.334817,0.00021935,7]
[335031760,1723782639858,-301.334817,0.00021935,7]
[335031762,1723782639869,-301.334819,0.00021935,7]
[335031764,1723782639879,-169.012906,0.00021935,7]
[335031766,1723782639889,-169.012906,0.00021935,7]
[335031768,1723782639899,-169.012906,0.00021935,7]
[335031770,1723782639909,-169.012906,0.00021935,7]
[335031772,1723782639918,-169.012906,0.00021935,7]
[335031774,1723782639928,-169.012906,0.00021935,7]
[335031776,1723782639938,-169.012906,0.00021935,7]
[335031778,1723782639947,-169.012906,0.00021935,7]
[335031780,1723782639956,-169.012906,0.00021935,7]
[335031783,1723782639967,-169.012906,0.00021935,7]
[335031785,1723782639976,-169.012906,0.00021935,7]
[335031787,1723782639985,-169.012906,0.00021935,7]
[335031789,1723782639994,-169.012906,0.00021935,7]
[335031791,1723782640003,-169.012903,0.00021935,7]
[335031793,1723782640014,-151.0,0.00021935,7]
[335031795,1723782640025,-151.0,0.00021935,7]
[335031797,1723782640035,-151.0,0.00021935,7]
[335031799,1723782640046,-151.0,0.00021935,7]
[335031802,1723782640057,-258.51994,0.00021935,7]
[335031804,1723782640068,-151.0,0.00021935,7]
[335031806,1723782640077,-151.0,0.00021935,7]
[335031808,1723782640087,-151.0,0.00021935,7]
[335031810,1723782640096,-151.0,0.00021935,7]
[335031812,1723782640105,-151.0,0.00021935,7]
[335031814,1723782640115,-151.0,0.00021935,7]
[335031816,1723782640125,-232.520745,0.00021935,7]
[335031818,1723782640135,-232.520745,0.00021935,7]
[335031821,1723782640148,-151.0,0.00021935,7]
[335031823,1723782640158,-151.0,0.00021935,7]
[335031825,1723782640168,-151.0,0.00021935,7]
[335031827,1723782640179,-151.0,0.00021935,7]
[335031829,1723782640190,-151.0,0.00021935,7]
[335031831,1723782640200,-151.0,0.00021935,7]
[335031833,1723782640211,-232.520745,0.00021935,7]
[335031836,1723782640220,-232.520745,0.00021935,7]
[335031838,1723782640231,-232.520745,0.00021935,7]
[335031840,1723782640241,-232.520745,0.00021935,7]
[335031842,1723782640251,-151.0,0.00021935,7]
[335031844,1723782640260,-151.0,0.00021935,7]
[335031846,1723782640270,-271.859727,0.00021935,7]
[335031848,1723782640280,-232.520745,0.00021935,7]
[335031850,1723782640289,-232.520745,0.00021935,7]
[335031852,1723782640298,-232.520745,0.00021935,7]
[335031854,1723782640308,-232.520745,0.00021935,7]
[335031856,1723782640318,-232.520745,0.00021935,7]
[335031858,1723782640328,-232.520751,0.00021935,7]
[335031860,1723782640337,-151.0,0.00021935,7]
[335031862,1723782640347,-151.0,0.00021935,7]
[335031865,1723782640357,-151.0,0.00021935,7]
[335031867,1723782640366,-151.0,0.00021935,7]
[335031869,1723782640375,-151.0,0.00021935,7]
[335031871,1723782640384,-151.0,0.00021935,7]
[335031873,1723782640393,-1583.291187,0.00021935,7]
[335031875,1723782640403,-1583.291187,0.00021935,7]
[335031877,1723782640412,-1583.291187,0.00021935,7]
[335031879,1723782640421,-1583.291187,0.00021935,7]
[335031881,1723782640432,-1583.291187,0.00021935,7]
[335031883,1723782640443,-1583.291187,0.00021935,7]
[335031885,1723782640454,-249.3688393,0.00022,2]
[335031887,1723782640465,-297.928832,0.00022099,7]
[335031890,1723782640475,-297.928832,0.00022099,7]
[335031892,1723782640487,-297.928832,0.00022099,7]
[335031894,1723782640498,-297.928832,0.00022099,7]
[335031897,1723782640509,-297.928832,0.00022099,7]
[335031899,1723782640519,-297.928832,0.00022099,7]
[335031901,1723782640528,-297.928832,0.00022299,7]